bitfinex-derivatives/quotes_ETHF0:USTF0_20250205
["timestamp","ask_amount","ask_price","bid_price","bid_amount"]
[1738726057020,1.13219189,2731.5,2731.0,0.00549189]
[1738726057622,1.13219189,2731.5,2731.0,3.21329189]
[1738726057821,1.13219189,2731.5,2731.2,2.52863368]
[1738726058621,1.13219189,2731.5,2731.0,3.21329189]
[1738726059124,1.72079189,2731.5,2731.0,3.21329189]
[1738726061022,0.59409189,2731.5,2731.0,3.21329189]
[1738726065229,1.18529189,2731.5,2731.0,3.21329189]
[1738726066032,1.18529189,2731.5,2731.0,0.00549189]
[1738726066335,3.2078,2731.2,2731.0,0.00549189]
[1738726067922,3.79342,2731.2,2731.0,0.00549189]
[1738726068435,3.2078,2731.2,2731.0,0.00549189]
[1738726068932,0.58563,2731.1,2731.0,0.00549189]
[1738726069233,11.37830196,2731.2,2730.0,3.2078]
[1738726069437,3.2078,2730.5,2730.0,3.2078]
[1738726069823,3.17050196,2731.2,2730.0,6.37830196]
[1738726069824,3.2078,2730.8,2730.0,6.37830196]
[1738726070028,3.2078,2730.8,2730.0,3.2078]
[1738726070029,0.58577,2730.5,2730.0,3.2078]
[1738726070329,0.58581,2730.3,2730.1,0.00549189]
[1738726070531,0.5858,2730.4,2730.1,0.00549189]
[1738726071332,3.2078,2730.5,2730.1,0.00549189]
[1738726071733,0.597,2730.7,2730.1,0.00549189]
[1738726071935,0.597,2730.7,2730.1,0.57239189]
[1738726072328,0.597,2730.7,2730.2,0.5835]
[1738726073235,0.5902,2730.6,2730.2,0.5835]
[1738726076531,0.5902,2730.6,2730.1,0.57239189]
[1738726076729,0.5902,2730.6,2730.1,0.00549189]
[1738726077227,3.2078,2730.5,2730.1,0.00549189]
[1738726077434,0.5754,2730.4,2730.1,0.00549189]
[1738726079137,3.2078,2730.2,2730.1,0.00549189]
[1738726080532,8.79363,2730.2,2730.1,0.00549189]
[1738726080840,8.79363,2730.2,2729.1,3.2078]
[1738726080841,0.58593,2729.8,2729.1,3.2078]
[1738726081041,0.58593,2729.8,2729.0,0.5769]
[1738726081042,0.58598,2729.5,2728.7,3.2078]
[1738726081440,3.2078,2729.6,2728.7,3.2078]
[1738726081634,0.58601,2729.4,2728.7,3.2078]
[1738726081833,0.58598,2729.5,2728.9,0.00549189]
[1738726082035,4.34510196,2729.7,2728.9,0.00549189]
[1738726082036,3.2078,2729.2,2728.9,0.00549189]
[1738726082438,0.58609,2729.0,2728.1,0.5502]
[1738726082636,3.2078,2728.7,2728.1,0.5502]
[1738726083745,3.2078,2728.7,2728.1,0.55569189]
[1738726083943,3.2078,2728.7,2728.2,3.17050196]
[1738726084746,3.2078,2728.7,2728.1,0.55569189]
[1738726085244,3.2078,2729.2,2728.1,0.55569189]
[1738726085444,3.2078,2729.2,2728.2,3.17050196]
[1738726085649,3.2078,2729.2,2728.4,3.2078]
[1738726085943,3.2078,2729.2,2728.5,3.73130196]
[1738726086437,3.2078,2729.2,2728.5,0.5608]
[1738726087246,3.2078,2729.2,2728.5,3.73130196]
[1738726087449,3.2078,2729.2,2728.8,3.17050196]
[1738726087840,3.2078,2729.2,2728.9,0.5432]
[1738726088646,3.2078,2729.2,2728.7,3.2078]
[1738726088844,3.2078,2728.8,2728.1,0.00549189]
[1738726089841,3.2078,2728.5,2728.1,0.00549189]
[1738726091047,3.2078,2728.8,2728.1,0.00549189]
[1738726091248,3.2078,2728.5,2728.1,0.00549189]
[1738726091748,3.2078,2728.8,2728.1,0.00549189]
[1738726092044,1.15719,2729.0,2728.1,0.00549189]
[1738726092045,3.2078,2728.5,2728.1,0.00549189]
[1738726092246,0.5695,2728.4,2728.1,0.00549189]
[1738726093148,1.1157,2728.4,2728.1,0.00549189]
[1738726095641,0.5695,2728.4,2728.1,0.00549189]
[1738726100453,0.5688,2728.8,2728.2,6.37830196]
[1738726100650,1.127,2729.0,2728.2,6.37830196]
[1738726101043,0.5559,2729.0,2728.5,3.2078]
[1738726102652,3.2078,2729.3,2728.8,3.17050196]
[1738726102965,0.00549189,2729.4,2729.1,3.17050196]
[1738726105253,0.00549189,2729.4,2729.3,3.2078]
[1738726105855,0.00549189,2729.4,2729.3,8.2078]
[1738726106558,0.00549189,2729.4,2729.3,3.2078]
[1738726108759,0.00549189,2729.4,2729.0,3.2078]
[1738726109460,0.58604,2729.2,2728.4,3.2078]
[1738726109650,3.2078,2729.0,2728.2,3.17050196]
[1738726109852,3.2078,2729.0,2728.0,4.3564]
[1738726109853,0.586,2728.9,2728.0,4.3564]
[1738726111460,0.586,2728.9,2728.0,1.1486]
[1738726112964,0.586,2728.9,2728.2,6.37830196]
[1738726115061,3.2078,2728.8,2728.2,6.37830196]
[1738726117357,3.2078,2728.8,2728.2,3.2078]
[1738726117666,3.2078,2728.8,2728.0,1.1486]
[1738726117968,3.2078,2728.8,2727.9,6.37830196]
[1738726121069,3.2078,2728.5,2727.9,6.37830196]
[1738726121366,0.5542,2728.4,2727.9,6.37830196]
[1738726124869,0.5542,2728.4,2728.1,2.54090017]
[1738726125767,3.2078,2728.8,2728.2,3.2078]
[1738726125965,3.2078,2728.8,2728.4,2.53540828]
[1738726126169,3.2078,2728.8,2728.7,2.53540828]
[1738726126465,0.5395,2729.0,2728.7,2.53540828]
[1738726127967,0.5395,2729.0,2728.5,3.2078]
[1738726127968,3.7473,2729.0,2728.5,3.2078]
[1738726128566,4.3334,2729.0,2728.5,3.2078]
[1738726129267,3.7473,2729.0,2728.5,3.2078]
[1738726131074,3.7473,2729.0,2728.2,0.5698]
[1738726132170,3.7473,2729.0,2728.7,2.53540828]
[1738726133273,3.7473,2729.0,2728.2,0.5698]
[1738726135076,3.2078,2728.7,2728.1,5.74870017]
[1738726135378,0.5865,2728.6,2728.1,5.74870017]
[1738726135880,3.2078,2728.4,2728.1,0.00549189]
[1738726136081,0.5838,2728.3,2728.1,0.00549189]
[1738726136475,0.5949,2728.5,2728.1,0.00549189]
[1738726138080,0.5838,2728.4,2728.1,0.00549189]
[1738726139282,0.5865,2728.6,2728.1,5.74870017]
[1738726139577,1.159,2728.6,2728.1,2.54090017]
[1738726139883,0.5725,2728.6,2728.1,5.74870017]
[1738726140174,0.5725,2728.6,2728.2,0.5473]
[1738726142078,0.5725,2728.6,2728.1,5.74870017]
[1738726144787,0.5725,2728.6,2728.1,0.00549189]
[1738726145883,0.5725,2728.6,2728.1,2.54090017]
[1738726146083,1.1126,2729.0,2728.5,3.2078]
[1738726146387,0.5915,2729.2,2728.8,3.2078]
[1738726146579,0.5915,2729.2,2728.8,3.7892]
[1738726146779,0.5915,2729.2,2729.0,2.53540828]
[1738726148381,0.5915,2729.2,2728.8,3.7892]
[1738726148685,0.5915,2729.2,2728.8,0.5814]
[1738726149786,0.5915,2729.2,2728.5,3.2078]
[1738726149983,3.7939,2729.0,2728.1,3.10840017]
[1738726150180,3.2078,2729.0,2728.1,3.10840017]
[1738726151190,3.2078,2729.1,2728.1,3.10840017]
[1738726151391,3.2078,2728.8,2728.1,3.10840017]
[1738726151590,1.1459,2728.7,2728.1,3.10840017]
[1738726151793,0.5829,2728.6,2728.1,3.10840017]
[1738726151991,0.5829,2728.6,2728.1,2.54090017]
[1738726153084,3.2078,2729.3,2728.4,2.53540828]
[1738726153290,3.7907,2729.3,2728.7,2.53540828]
[1738726153894,3.7907,2729.3,2728.5,0.5482]
[1738726154386,3.2078,2729.0,2728.2,3.7697]
[1738726154586,1.1225,2728.9,2728.2,3.7697]
[1738726155091,3.7907,2729.3,2728.5,3.2078]
[1738726155386,4.9132,2729.3,2728.5,3.2078]
[1738726155588,1.7054,2729.3,2728.7,2.53540828]
[1738726155894,0.00549189,2729.4,2729.0,2.53540828]
[1738726156390,0.00549189,2729.4,2728.7,3.09580828]
[1738726156787,0.00549189,2729.4,2729.0,2.53540828]
[1738726157190,0.00549189,2729.4,2729.3,2.53540828]
[1738726157390,0.00549189,2729.4,2729.3,3.07970828]
[1738726164800,0.00549189,2729.4,2729.2,3.2078]
[1738726167600,0.00549189,2729.4,2729.1,0.56]
[1738726168898,0.00549189,2729.4,2729.3,2.53540828]
[1738726169497,3.2078,2729.9,2729.3,0.5663]
[1738726169700,3.2078,2729.9,2729.5,3.2078]
[1738726171294,3.2078,2729.9,2729.1,2.53540828]
[1738726171595,3.7937,2729.9,2729.0,0.5702]
[1738726171802,3.2078,2729.6,2728.9,3.2078]
[1738726171997,3.2078,2729.3,2728.5,5.74320828]
[1738726172194,3.2078,2729.3,2728.3,1.1381]
[1738726174794,3.2078,2729.3,2728.6,3.2078]
[1738726177404,3.2078,2729.3,2728.8,3.17673396]
[1738726177799,3.2078,2729.3,2728.9,0.5503]
[1738726178402,3.2078,2729.3,2728.6,3.2078]
[1738726185202,1.6626,2729.5,2728.6,3.2078]
[1738726186203,3.2078,2729.3,2728.6,3.2078]
[1738726189217,1.6626,2729.5,2728.6,3.2078]
[1738726189612,1.6626,2729.5,2728.9,3.2078]
[1738726189808,1.121,2729.5,2729.0,1.1388]
[1738726192913,1.121,2729.5,2728.9,3.2078]
[1738726193219,3.79383,2729.3,2728.6,3.2078]
[1738726193419,0.5797,2729.2,2728.6,3.2078]
[1738726195813,1.16576,2729.2,2728.6,3.2078]
[1738726196008,3.2078,2729.0,2728.6,3.2078]
[1738726196212,0.566,2728.9,2728.6,3.2078]
[1738726196413,1.15,2728.9,2728.6,3.2078]
[1738726199817,1.15,2728.9,2728.3,3.2078]
[1738726200525,3.2078,2729.0,2728.5,2.53525173]
[1738726200825,3.2078,2729.7,2728.9,3.2078]
[1738726201015,3.2078,2729.7,2729.2,5.74305173]
[1738726201215,5.74305173,2729.7,2729.0,1.1318]
[1738726201412,5.74305173,2729.7,2729.0,0.5688]
[1738726201612,3.2078,2729.3,2728.8,3.2078]
[1738726201821,0.5558,2729.2,2728.8,3.2078]
[1738726202023,1.6816,2729.2,2728.8,3.2078]
[1738726203021,3.2078,2729.3,2728.9,2.53525173]
[1738726203225,0.5783,2729.7,2729.2,5.74305173]
[1738726203417,0.00549189,2730.0,2729.3,0.5631]
[1738726204719,0.00549189,2730.0,2729.7,3.2078]
[1738726205118,0.00549189,2730.0,2729.6,0.00549189]
[1738726205417,3.21329189,2730.0,2729.6,0.00549189]
[1738726205617,0.555,2729.9,2729.6,0.00549189]
[1738726206019,3.2078,2729.7,2729.6,0.00549189]
[1738726209026,3.21329189,2730.0,2729.6,0.00549189]
[1738726209616,0.00549189,2730.0,2729.7,3.2078]
[1738726209821,0.00549189,2730.0,2729.8,0.5582]
[1738726211219,22.91945595,2730.9,2729.8,5.5582]
[1738726211529,22.91945595,2730.9,2730.5,3.2078]
[1738726211530,19.71165595,2730.9,2730.5,3.2078]
[1738726211726,19.71165595,2730.9,2730.6,3.09115173]
[1738726211919,19.71165595,2730.9,2730.8,3.2078]
[1738726212424,16.30170127,2730.9,2730.8,8.2078]
[1738726212619,0.00549189,2731.1,2730.8,11.96327546]
[1738726212919,3.2078,2731.9,2730.8,6.96327546]
[1738726213117,3.2078,2731.9,2731.3,3.16979546]
[1738726213513,3.7762,2732.3,2731.5,3.2078]
[1738726214126,0.00549189,2732.2,2731.6,0.00549189]
[1738726215316,0.00549189,2732.2,2731.6,3.17528735]
[1738726215719,0.00549189,2732.2,2731.9,3.16979546]
[1738726216022,0.00549189,2732.2,2732.0,0.5839]
[1738726216221,0.00549189,2732.2,2732.0,1.1335]
[1738726218027,0.00549189,2732.2,2731.6,0.00549189]
[1738726218233,0.00549189,2732.2,2732.1,3.2078]
[1738726218930,0.5599,2733.0,2732.1,8.2078]
[1738726219129,0.5599,2733.0,2732.4,3.2078]
[1738726220825,3.7677,2733.0,2732.4,3.2078]
[1738726221027,0.5682,2733.6,2732.8,6.37759546]
[1738726221719,3.2078,2733.4,2732.5,6.37759546]
[1738726221926,3.2078,2733.1,2732.2,3.7771]
[1738726222134,0.5839,2733.0,2732.2,6.94689546]
[1738726222523,3.2078,2733.1,2732.2,6.94689546]
[1738726222931,3.2078,2733.1,2732.5,3.16979546]
[1738726223926,3.2078,2733.1,2732.2,6.94689546]
[1738726226128,0.5954,2733.0,2732.2,6.37759546]
[1738726226334,3.2078,2733.1,2732.5,3.16979546]
[1738726226734,4.3878,2733.5,2732.5,6.37759546]
[1738726227430,4.3878,2733.5,2732.8,3.2078]
[1738726228136,4.3878,2733.5,2732.8,6.37759546]
[1738726228629,4.3878,2733.5,2732.8,3.2078]
[1738726232034,3.2078,2733.1,2732.6,0.5901]
[1738726232234,0.5682,2733.0,2732.5,3.2078]
[1738726233537,3.2078,2732.8,2732.1,0.5588]
[1738726233743,0.5513,2732.7,2731.9,3.7749]
[1738726234043,1.1004,2732.7,2731.9,3.7749]
[1738726234741,3.62948422,2732.7,2731.9,3.7749]
[1738726236040,4.21478422,2732.7,2731.9,3.7749]
[1738726236344,3.62948422,2732.7,2731.9,3.7749]
[1738726236538,4.21478422,2732.7,2731.9,3.7749]
[1738726237737,0.58532,2732.6,2731.9,3.2078]
[1738726237937,3.62948422,2732.7,2731.9,3.2078]
[1738726238137,1.1004,2732.7,2731.9,3.2078]
[1738726238336,1.1004,2732.7,2731.9,5.73688422]
[1738726238943,1.1004,2732.7,2731.7,0.589]
[1738726239240,3.2078,2732.1,2731.6,0.00549189]
[1738726239447,2.28334,2732.0,2731.6,0.00549189]
[1738726240046,1.6979,2732.0,2731.6,0.00549189]
[1738726240247,3.2078,2731.8,2731.6,0.00549189]
[1738726242543,1.6979,2732.0,2731.6,0.00549189]
[1738726244047,3.2078,2732.2,2731.6,2.53457611]
[1738726244242,3.2078,2732.2,2731.9,2.52908422]
[1738726244443,3.2078,2732.2,2732.0,0.5601]
[1738726245556,1.1195,2732.6,2732.1,3.2078]
[1738726245748,3.2078,2732.5,2732.1,3.2078]
[1738726246452,1.1195,2732.6,2732.1,3.2078]
[1738726249351,1.1195,2732.6,2732.2,0.5695]
[1738726249558,1.1195,2732.6,2732.1,3.2078]
[1738726253145,3.2078,2732.3,2731.7,3.2078]
[1738726254061,3.2078,2731.8,2731.6,0.00549189]
[1738726255064,1.1614,2731.7,2731.6,0.00549189]
[1738726255561,1.74691,2731.7,2731.6,0.00549189]
[1738726255753,0.58555,2731.6,2730.7,0.5935]
[1738726255956,3.2078,2731.3,2730.6,3.2078]
[1738726256155,3.2078,2730.9,2730.0,1.1907]
[1738726256453,3.2078,2730.6,2730.0,0.5935]
[1738726256963,3.21329189,2730.6,2730.0,0.59899189]
[1738726257152,3.2078,2730.3,2730.0,0.00549189]
[1738726257357,3.16879986,2730.1,2728.9,3.2078]
[1738726257659,3.2078,2729.8,2728.9,3.2078]
[1738726258153,3.2078,2729.8,2728.9,6.37659986]
[1738726258654,3.2078,2729.8,2729.1,0.00549189]
[1738726259560,3.2078,2729.8,2729.2,3.2078]
[1738726259860,0.29349193,2730.6,2729.1,0.00549189]
[1738726259861,3.2078,2730.5,2729.5,3.16879986]
[1738726260061,3.2078,2730.2,2729.5,3.16879986]
[1738726260462,3.2078,2730.2,2729.6,3.2078]
[1738726260663,3.21329189,2730.6,2729.9,3.2078]
[1738726260963,3.21329189,2730.6,2730.1,3.16879986]
[1738726261156,3.21329189,2730.6,2730.0,0.5827]
[1738726261859,3.21329189,2730.6,2729.7,0.5393]
[1738726262257,0.579,2730.5,2729.7,0.5393]
[1738726263056,3.2078,2730.3,2729.6,3.2078]
[1738726263460,0.5804,2730.2,2729.6,3.2078]
[1738726264157,0.5804,2730.2,2729.1,0.54479189]
[1738726264158,3.2078,2730.0,2729.1,0.54479189]
[1738726264458,3.2078,2729.7,2729.2,3.2078]
[1738726265465,3.2078,2729.7,2729.2,6.37659986]
[1738726265860,3.7868,2730.5,2729.5,3.2078]
[1738726266859,3.7868,2730.5,2729.8,3.2078]
[1738726267466,3.7868,2730.5,2729.9,0.541]
[1738726268859,0.579,2730.5,2729.9,0.541]
[1738726269172,0.00549189,2730.6,2729.9,0.541]
[1738726269466,0.00549189,2730.6,2730.1,6.37659986]
[1738726269664,0.00549189,2730.6,2730.2,0.5473]
[1738726270971,0.00549189,2730.6,2730.4,3.16879986]
[1738726271172,0.00549189,2730.6,2730.4,3.75457986]
[1738726271372,3.2078,2731.2,2730.4,3.16879986]
[1738726272572,0.00549189,2731.1,2730.5,0.00549189]
[1738726273166,0.57629189,2731.1,2730.5,0.00549189]
[1738726273567,0.57629189,2731.1,2730.7,3.2078]
[1738726273568,0.00549189,2731.1,2730.7,3.2078]
[1738726274273,0.00549189,2731.1,2731.0,3.2078]
[1738726274573,0.00549189,2731.1,2730.7,3.2078]
[1738726276968,3.2078,2732.0,2731.0,6.37659986]
[1738726277163,3.2078,2732.0,2731.4,6.37659986]
[1738726277367,1.1598,2732.7,2731.7,6.37659986]
[1738726277569,3.2078,2733.1,2732.3,6.37659986]
[1738726277770,3.2078,2733.4,2732.7,3.2078]
[1738726277969,3.2078,2733.7,2732.7,3.2078]
[1738726278374,3.2078,2733.7,2732.8,0.00549189]
[1738726279574,3.2078,2733.7,2733.0,3.2078]
[1738726282777,1.1598,2734.1,2733.3,3.2078]
[1738726282976,0.5779,2734.1,2733.3,3.2078]
[1738726283594,3.2078,2734.4,2733.3,3.2078]
[1738726284383,1.1182,2734.6,2733.7,3.2078]
[1738726284886,3.2078,2734.5,2733.7,3.2078]
[1738726285389,1.1182,2734.6,2733.7,3.2078]
[1738726287290,3.2078,2734.4,2733.7,3.2078]
[1738726288588,1.1182,2734.6,2733.7,3.2078]
[1738726290885,3.2078,2734.1,2733.4,3.2078]
[1738726291080,0.588,2734.0,2733.1,3.2078]
[1738726291286,3.2078,2733.8,2733.1,3.2078]
[1738726291788,0.585,2733.7,2733.1,3.2078]
[1738726291994,1.1244,2733.7,2733.1,3.2078]
[1738726299287,1.1244,2733.7,2732.8,0.00549189]
[1738726299288,3.2078,2734.4,2733.4,3.2078]
[1738726299593,3.2078,2734.4,2733.7,3.2078]
[1738726302996,3.2078,2734.9,2734.2,3.16443321]
[1738726303395,3.2078,2734.9,2734.3,3.77869189]
[1738726303997,3.2078,2734.9,2734.3,3.21329189]
[1738726304598,3.2078,2734.6,2734.3,0.00549189]
[1738726304792,1.134,2734.5,2734.3,0.00549189]
[1738726304999,1.6777,2734.5,2734.3,0.00549189]
[1738726305202,0.5705,2734.5,2734.3,0.00549189]
[1738726307305,4.315,2734.9,2734.3,0.00549189]
[1738726308700,3.2078,2734.6,2734.3,0.00549189]
[1738726309803,3.2078,2734.6,2733.2,1.311]
[1738726309804,3.16443321,2734.4,2733.0,3.2078]
[1738726309998,3.2078,2733.5,2733.0,3.2078]
[1738726310304,3.79292,2733.5,2732.7,1.1134]
[1738726310500,1.1301,2733.4,2732.5,3.2078]
[1738726310703,3.2078,2733.1,2732.5,3.2078]
[1738726310901,3.2078,2733.1,2732.7,0.00549189]
[1738726311300,3.2078,2732.8,2732.7,0.00549189]
[1738726311611,0.58532,2732.6,2731.6,3.2078]
[1738726311805,3.2078,2732.3,2731.6,3.2078]
[1738726312609,3.2078,2732.3,2731.7,0.00549189]
[1738726313999,3.2078,2732.6,2731.8,3.2078]
[1738726314307,3.2078,2732.9,2732.4,6.37223321]
[1738726316305,3.2078,2732.9,2732.4,3.2078]
[1738726317100,0.00549189,2733.2,2732.4,6.37223321]
[1738726317307,0.00549189,2733.2,2732.7,3.16443321]
[1738726317517,0.00549189,2733.2,2732.8,0.5426]
[1738726318313,0.00549189,2733.2,2733.0,6.37223321]
[1738726320315,0.00549189,2733.2,2733.0,11.37223321]
[1738726320511,0.5693,2734.1,2733.0,11.37223321]
[1738726320813,3.2078,2734.3,2732.8,1.8526]
[1738726320814,3.2078,2734.3,2733.4,3.2078]
[1738726321115,0.5931,2734.2,2733.4,3.2078]
[1738726321809,0.00549189,2734.1,2733.5,0.57529189]
[1738726322011,0.00549189,2734.1,2733.5,3.7397251]
[1738726323106,0.00549189,2734.1,2733.8,3.16443321]
[1738726323307,0.00549189,2734.1,2733.5,3.7397251]
[1738726323609,0.00549189,2734.1,2733.5,0.57529189]
[1738726323809,0.00549189,2734.1,2733.5,3.7397251]
[1738726324113,0.00549189,2734.1,2734.0,3.2078]
[1738726324613,0.00549189,2734.1,2733.6,3.7852]
[1738726324818,0.00549189,2734.1,2733.6,3.2078]
[1738726325919,3.2078,2734.0,2733.5,0.00549189]
[1738726327018,0.00549189,2734.1,2733.5,0.00549189]
[1738726327322,0.00549189,2734.1,2733.6,3.2078]
[1738726327920,0.00549189,2734.1,2733.5,0.00549189]
[1738726329410,3.2078,2734.0,2733.5,0.00549189]
[1738726329610,3.2078,2733.7,2732.7,3.2078]
[1738726329814,3.2078,2733.4,2732.4,3.2078]
[1738726330017,0.5535,2733.3,2732.5,3.16443321]
[1738726330822,1.13868,2733.3,2732.6,0.00549189]
[1738726331124,3.2078,2732.8,2732.6,0.00549189]
[1738726331723,3.79307,2732.8,2732.6,0.00549189]
[1738726332021,3.2078,2732.8,2732.6,0.00549189]
[1738726333819,0.5917,2733.1,2732.6,0.00549189]
[1738726334224,3.2078,2733.0,2732.6,0.00549189]
[1738726336924,3.2078,2732.7,2732.6,0.00549189]
[1738726337622,0.58535,2732.5,2731.6,3.2078]
[1738726337823,3.2078,2732.3,2731.6,3.2078]
[1738726338828,0.00549189,2732.2,2731.7,0.00549189]
[1738726339839,0.00549189,2732.2,2731.7,0.55159189]
[1738726340833,0.00549189,2732.2,2731.9,6.37223321]
[1738726344638,0.00549189,2732.2,2731.7,0.00549189]
[1738726345031,1.09289189,2732.2,2731.7,0.00549189]
[1738726345236,1.67829189,2732.2,2731.7,0.00549189]
[1738726345432,3.2078,2731.8,2731.7,0.00549189]
[1738726348138,3.79328,2731.8,2731.7,0.00549189]
[1738726348342,0.58551,2731.7,2730.9,3.2078]
[1738726349046,3.2078,2731.4,2730.4,3.2078]
[1738726349249,0.5508,2731.3,2730.4,3.2078]
[1738726349438,0.5508,2731.3,2730.6,0.00549189]
[1738726349439,0.5793,2731.2,2730.6,0.00549189]
[1738726351451,2.964,2731.7,2731.0,6.37223321]
[1738726351647,2.964,2731.7,2731.1,0.5764]
[1738726352149,2.964,2731.7,2731.2,0.5744]
[1738726352349,3.2078,2731.8,2731.2,0.5744]
[1738726352948,0.56219189,2732.2,2731.6,3.16443321]
[1738726352949,0.00549189,2732.2,2731.6,3.16443321]
[1738726353148,0.00549189,2732.2,2732.0,3.2078]
[1738726353551,0.00549189,2732.2,2731.6,3.16443321]
[1738726356049,0.00549189,2732.2,2731.8,3.2078]
[1738726356945,0.00549189,2732.2,2731.9,3.16443321]
[1738726357150,0.00549189,2732.2,2731.9,3.74363321]
[1738726357440,3.2078,2732.6,2732.0,1.0873]
[1738726358151,3.2078,2732.6,2732.0,0.546]
[1738726358654,3.21329189,2732.6,2732.2,3.16443321]
[1738726359049,0.00549189,2732.6,2732.2,3.16443321]
[1738726360246,0.00549189,2732.6,2732.0,0.00549189]
[1738726361650,3.21329189,2732.6,2732.0,0.00549189]
[1738726361847,0.5726,2732.5,2732.0,0.00549189]
[1738726362051,6.37223321,2732.1,2730.2,3.2078]
[1738726362248,3.2078,2731.1,2730.1,3.2078]
[1738726362443,3.2078,2731.1,2730.4,3.2078]
[1738726362648,3.2078,2731.1,2730.3,3.2078]
[1738726363149,0.00549189,2731.0,2730.6,3.2078]
[1738726363548,0.00549189,2731.0,2730.9,3.2078]
[1738726367844,0.00549189,2731.0,2730.4,3.21329189]
[1738726369452,3.16443321,2730.7,2730.4,0.00549189]
[1738726369653,3.2078,2730.5,2730.4,0.00549189]
[1738726373161,3.79356,2730.5,2730.4,0.00549189]
[1738726373363,3.2078,2730.5,2730.4,0.00549189]
[1738726375163,3.2078,2730.8,2730.4,0.00549189]
[1738726375359,0.00549189,2731.0,2730.4,0.00549189]
[1738726377462,3.2078,2730.8,2730.4,0.00549189]
[1738726377763,3.2078,2730.5,2730.4,0.00549189]
[1738726380666,8.2078,2730.5,2729.6,0.5471]
[1738726380964,1.309,2730.9,2729.4,3.2078]
[1738726380965,3.2078,2729.8,2729.4,3.2078]
[1738726381164,1.1764,2729.7,2729.4,3.2078]
[1738726381360,1.7735,2729.7,2729.4,3.2078]
[1738726381760,1.7735,2729.7,2728.6,1.1387]
[1738726381761,7.90193321,2729.7,2728.9,3.2078]
[1738726381960,6.37223321,2729.4,2729.3,0.00549189]
[1738726382962,0.58604,2729.2,2728.2,3.2078]
[1738726383154,3.2078,2728.9,2728.2,3.2078]
[1738726384071,3.2078,2728.9,2728.3,0.00366126]
[1738726384264,3.2078,2728.6,2728.3,0.00366126]
[1738726385464,3.16443321,2728.4,2728.3,0.00366126]
[1738726386065,3.2078,2728.6,2728.3,0.00366126]
[1738726386268,0.00549189,2729.6,2728.5,6.37223321]
[1738726386566,0.00549189,2729.6,2728.8,6.37223321]
[1738726386567,3.2078,2729.4,2728.8,6.37223321]
[1738726386757,3.2078,2729.4,2728.8,3.2078]
[1738726387159,3.2078,2729.4,2728.4,3.16443321]
[1738726387373,3.2078,2729.4,2728.3,3.21146126]
[1738726387572,0.5906,2729.3,2728.3,3.21146126]
[1738726388060,3.2078,2729.0,2728.3,3.21146126]
[1738726389263,3.7984,2729.3,2728.3,3.21146126]
[1738726391472,3.7984,2729.3,2728.6,3.2078]
[1738726391673,0.5498,2729.5,2729.2,3.2078]
[1738726391970,0.00549189,2729.6,2729.2,3.2078]
[1738726392574,0.00549189,2729.6,2729.1,3.2078]
[1738726393365,3.2078,2729.5,2728.8,3.2078]
[1738726393565,1.157,2729.4,2728.8,3.2078]
[1738726393976,0.5917,2729.3,2728.8,3.2078]
[1738726394778,3.2078,2729.2,2728.5,3.2078]
[1738726396375,3.2078,2729.2,2728.8,3.2078]
[1738726396579,0.5589,2729.4,2728.8,3.2078]
[1738726397374,0.00549189,2729.6,2729.1,3.2078]
[1738726398275,0.00549189,2729.6,2729.4,3.2078]
[1738726398581,0.00549189,2729.6,2729.1,3.2078]
[1738726400679,0.00549189,2729.6,2729.4,3.2078]
[1738726403072,0.00549189,2729.6,2728.9,3.2078]
[1738726404885,0.00549189,2729.6,2728.6,3.2078]
[1738726405082,0.00549189,2729.6,2728.9,3.2078]
[1738726405884,0.00549189,2729.6,2729.3,3.2078]
[1738726406385,3.2078,2730.8,2729.6,0.58594]
[1738726406583,3.2078,2730.8,2730.2,3.2078]
[1738726407388,3.21329189,2730.8,2730.2,3.21329189]
[1738726407988,0.00549189,2730.8,2730.2,3.21329189]
[1738726410282,0.00549189,2730.8,2730.5,3.2078]
[1738726413988,0.00549189,2730.8,2730.2,3.21329189]
[1738726414185,0.58259189,2730.8,2730.2,3.21329189]
[1738726415185,1.15019189,2730.8,2730.2,3.21329189]
[1738726415791,0.58259189,2730.8,2730.5,3.2078]
[1738726415992,0.00549189,2730.8,2730.5,6.38074969]
[1738726416389,4.0748,2731.9,2730.6,0.5864]
[1738726416591,3.7855,2731.8,2730.9,3.2078]
[1738726417491,0.5777,2731.8,2730.9,3.2078]
[1738726417697,0.00549189,2731.6,2730.9,3.2078]
[1738726419199,0.00549189,2731.6,2731.2,3.2078]
[1738726419503,0.00549189,2731.6,2731.5,3.2078]
[1738726422903,0.00549189,2731.6,2730.9,3.2078]
[1738726423610,3.2078,2731.4,2730.3,0.3034]
[1738726423801,1.0964,2731.3,2730.5,3.2078]
[1738726424598,1.0964,2731.3,2730.8,3.2078]
[1738726424902,0.00549189,2731.6,2730.8,3.2078]
[1738726425506,0.00549189,2731.6,2731.1,3.2078]
[1738726426208,0.00549189,2731.6,2731.4,3.2078]
[1738726427316,0.00549189,2731.6,2731.1,3.2078]
[1738726428110,0.00549189,2731.6,2730.8,3.2078]
[1738726428111,3.21329189,2731.6,2730.8,3.2078]
[1738726428318,0.00549189,2731.6,2731.1,3.2078]
[1738726440416,0.00549189,2731.6,2731.4,3.2078]
[1738726442421,0.00549189,2731.6,2730.8,3.2078]
[1738726442723,3.2078,2731.2,2730.3,0.5501]
[1738726443024,4.3728,2731.1,2730.3,3.2078]
[1738726444527,3.2078,2730.5,2730.2,0.00549189]
[1738726444716,1.165,2730.4,2730.2,0.00549189]
[1738726444923,1.75,2730.4,2730.2,0.00549189]
[1738726445818,1.75,2730.4,2729.4,3.2078]
[1738726446020,3.2078,2730.2,2729.4,3.2078]
[1738726446622,3.2078,2730.2,2729.1,3.2078]
[1738726446623,3.79372,2729.8,2729.1,3.2078]
[1738726446827,3.17045016,2729.6,2729.1,3.2078]
[1738726447130,3.2078,2729.5,2729.4,0.00549189]
[1738726447327,3.2078,2729.5,2728.6,3.2078]
[1738726447530,3.2078,2729.2,2728.6,3.2078]